Workbook

Sheet Hidden Data (hidden)
D2: CONVECTOR STEAM RATINGS
H3: STEAM RATINGS IN EDR (215° AT 65° E.A.T.)
G4: group 1 | O4: group 2 | W4: group 3 | AE4: group 4
F5: FRONT OUTLET, NOMINAL LINER HEIGHT | N5: FRONT OUTLET, WALL MOUNTED, NOM. HEIGHT | V5: SLOPE TOP, FREE STANDING, NOMINAL HEIGHT | AD5: SLOPE TOP, WALL MOUNTED, NOMINAL HEIGHT
C6: DEPTH IN INCHES | D6: LENGTH IN INCHES | F6: *TYPES FS-A, FSG-A, SR-A, SRG-A, RF-A, RFG-A, PW-A, PWG-A, FWG-A | N6: TYPE W-A | V6: *TYPE SF-A, SFG-A | AD6: TYPE SW-A
F7: 18" | G7: 20" | H7: 20" | I7: 26" | J7: 32" | N7: 14" | O7: 18" | P7: 20" | Q7: 26" | R7: 32" | V7: 18" | W7: 20" | X7: 24" | Y7: 26" | Z7: 32" | AD7: 14" | AE7: 18" | AF7: 20" | AG7: 26" | AH7: 32"
F8: 1 | G8: 2 | H8: 3 | I8: 4 | J8: 5 | N8: 1 | O8: 2 | P8: 3 | Q8: 4 | R8: 5 | V8: 1 | W8: 2 | X8: 3 | Y8: 4 | Z8: 5 | AD8: 1 | AE8: 2 | AF8: 3 | AG8: 4 | AH8: 5
C9: 4 (1) | D9: 20 | E9: 1 | F9: 9.3 | G9: 10.4 | H9: 11.8 | I9: 12.2 | J9: 13 | N9: 10.4 | O9: 11.8 | P9: 12.2 | Q9: 13 | R9: 13.6 | U9: 1 | V9: 11.7 | W9: 12.2 | X9: 13 | Y9: 13.4 | Z9: 13.9 | AC9: 1 | AD9: 12.2 | AE9: 13 | AF9: 13.4 | AG9: 13.9 | AH9: 14.6
D10: 24 | E10: 2 | F10: 11.5 | G10: 13.1 | H10: 15.1 | I10: 15.5 | J10: 16.6 | N10: 13.1 | O10: 15.1 | P10: 15.5 | Q10: 16.6 | R10: 17.3 | U10: 2 | V10: 15 | W10: 15.5 | X10: 16.5 | Y10: 17 | Z10: 17.7 | AC10: 2 | AD10: 15.5 | AE10: 16.5 | AF10: 17 | AG10: 17.7 | AH10: 18.4
D11: 28 | E11: 3 | F11: 13.8 | G11: 15.9 | H11: 18.1 | I11: 18.6 | J11: 19.9 | N11: 15.9 | O11: 18.1 | P11: 18.6 | Q11: 19.9 | R11: 21 | U11: 3 | V11: 18 | W11: 18.7 | X11: 19.9 | Y11: 20.4 | Z11: 21.3 | AC11: 3 | AD11: 18.7 | AE11: 19.9 | AF11: 20.4 | AG11: 21.3 | AH11: 22.1
D12: 32 | E12: 4 | F12: 16.1 | G12: 18.7 | H12: 21.3 | I12: 21.9 | J12: 23.6 | N12: 18.7 | O12: 21.3 | P12: 21.9 | Q12: 23.6 | R12: 24.8 | U12: 4 | V12: 21.3 | W12: 22.1 | X12: 23.5 | Y12: 24 | Z12: 25.2 | AC12: 4 | AD12: 22.1 | AE12: 23.5 | AF12: 24 | AG12: 25.2 | AH12: 26.2
D13: 36 | E13: 5 | F13: 18.2 | G13: 21.5 | H13: 24.5 | I13: 25.1 | J13: 27.1 | M13: 5 | N13: 21.5 | O13: 24.5 | P13: 25.1 | Q13: 27.1 | R13: 28.6 | U13: 5 | V13: 24.6 | W13: 25.3 | X13: 26.9 | Y13: 27.6 | Z13: 29 | AC13: 5 | AD13: 25.3 | AE13: 26.9 | AF13: 27.6 | AG13: 29 | AH13: 30.2
D14: 40 | E14: 6 | F14: 20.4 | G14: 24.2 | H14: 27.5 | I14: 28.3 | J14: 30.5 | M14: 6 | N14: 24.2 | O14: 27.5 | P14: 28.3 | Q14: 30.5 | R14: 32.2 | U14: 6 | V14: 27.7 | W14: 28.5 | X14: 30.5 | Y14: 31.3 | Z14: 32.7 | AC14: 6 | AD14: 28.5 | AE14: 30.5 | AF14: 31.3 | AG14: 32.7 | AH14: 33.8
D15: 44 | E15: 7 | F15: 22.6 | G15: 27 | H15: 30.8 | I15: 31.5 | J15: 34 | M15: 7 | N15: 27 | O15: 30.8 | P15: 31.5 | Q15: 34 | R15: 36 | U15: 7 | V15: 30.6 | W15: 31.8 | X15: 33.9 | Y15: 34.8 | Z15: 36.4 | AC15: 7 | AD15: 31.8 | AE15: 33.9 | AF15: 34.8 | AG15: 36.4 | AH15: 37.8
D16: 48 | E16: 8 | F16: 24.8 | G16: 29.6 | H16: 33.8 | I16: 34.8 | J16: 37.4 | M16: 8 | N16: 29.6 | O16: 33.8 | P16: 34.8 | Q16: 37.4 | R16: 39.7 | U16: 8 | V16: 33.9 | W16: 35 | X16: 37.4 | Y16: 38.3 | Z16: 40.1 | AC16: 8 | AD16: 35 | AE16: 37.4 | AF16: 38.3 | AG16: 40.1 | AH16: 41.6
D17: 52 | E17: 9 | F17: 27.3 | G17: 32.5 | H17: 36.9 | I17: 37.8 | J17: 40.6 | M17: 9 | N17: 32.5 | O17: 36.9 | P17: 37.8 | Q17: 40.6 | R17: 43.1 | U17: 9 | V17: 36.8 | W17: 38.1 | X17: 40.6 | Y17: 41.4 | Z17: 43.5 | AC17: 9 | AD17: 38.1 | AE17: 40.6 | AF17: 41.4 | AG17: 43.5 | AH17: 45.2
D18: 56 | E18: 10 | F18: 29.3 | G18: 35.2 | H18: 40.1 | I18: 41.1 | J18: 44.3 | M18: 10 | N18: 35.2 | O18: 40.1 | P18: 41.1 | Q18: 44.3 | R18: 47.1 | U18: 10 | V18: 40.1 | W18: 41.4 | X18: 44.4 | Y18: 45.2 | Z18: 47.5 | AC18: 10 | AD18: 41.4 | AE18: 44.4 | AF18: 45.2 | AG18: 47.5 | AH18: 49.3
D19: 60 | E19: 11 | F19: 31.9 | G19: 38 | H19: 43.1 | I19: 44.2 | J19: 47.5 | M19: 11 | N19: 38 | O19: 43.1 | P19: 44.2 | Q19: 47.5 | R19: 50.5 | U19: 11 | V19: 42.7 | W19: 44.6 | X19: 47.5 | Y19: 48.4 | Z19: 50.8 | AC19: 11 | AD19: 44.6 | AE19: 47.5 | AF19: 48.4 | AG19: 50.8 | AH19: 53.4
D20: 64 | E20: 12 | F20: 33.9 | G20: 40.8 | H20: 46.4 | I20: 47.5 | J20: 51.2 | M20: 12 | N20: 40.8 | O20: 46.4 | P20: 47.5 | Q20: 51.2 | R20: 54.5 | U20: 12 | V20: 45.8 | W20: 47.9 | X20: 51.3 | Y20: 52.2 | Z20: 54.8 | AC20: 12 | AD20: 47.9 | AE20: 51.3 | AF20: 52.2 | AG20: 54.8 | AH20: 58
F22: 1 | G22: 2 | H22: 3 | I22: 4 | J22: 5 | N22: 1 | O22: 2 | P22: 3 | Q22: 4 | R22: 5 | V22: 1 | W22: 2 | X22: 3 | Y22: 4 | Z22: 5 | AD22: 1 | AE22: 2 | AF22: 3 | AG22: 4 | AH22: 5
C23: 6 (2) | D23: 20 | E23: 1 | F23: 13.5 | G23: 15.1 | H23: 17.7 | I23: 18.3 | J23: 20.2 | M23: 1 | N23: 15.1 | O23: 17.7 | P23: 18.3 | Q23: 20.2 | R23: 21 | U23: 1 | V23: 18.2 | W23: 18.8 | X23: 20.7 | Y23: 21.2 | Z23: 22.6 | AC23: 1 | AD23: 18.8 | AE23: 20.7 | AF23: 21.2 | AG23: 22.6 | AH23: 23.7
D24: 24 | E24: 2 | F24: 16.8 | G24: 19 | H24: 22.4 | I24: 23.2 | J24: 25.7 | M24: 2 | N24: 19 | O24: 22.4 | P24: 23.2 | Q24: 25.7 | R24: 26.7 | U24: 2 | V24: 22.6 | W24: 23.8 | X24: 26.2 | Y24: 27 | Z24: 29 | AC24: 2 | AD24: 23.8 | AE24: 26.2 | AF24: 27 | AG24: 29 | AH24: 29.9
D25: 28 | E25: 3 | F25: 20.2 | G25: 23 | H25: 27 | I25: 27.8 | J25: 30.7 | M25: 3 | N25: 23 | O25: 27 | P25: 27.8 | Q25: 30.7 | R25: 31.9 | U25: 3 | V25: 27.2 | W25: 28.7 | X25: 31.5 | Y25: 32.3 | Z25: 34.7 | AC25: 3 | AD25: 28.7 | AE25: 31.5 | AF25: 32.3 | AG25: 34.7 | AH25: 36.2
D26: 32 | E26: 4 | F26: 23.4 | G26: 27 | H26: 31.7 | I26: 32.8 | J26: 36.2 | M26: 4 | N26: 27 | O26: 31.7 | P26: 32.8 | Q26: 36.2 | R26: 37.6 | U26: 4 | V26: 31.4 | W26: 33.8 | X26: 37.1 | Y26: 38 | Z26: 41 | AC26: 4 | AD26: 33.8 | AE26: 37.1 | AF26: 38 | AG26: 41 | AH26: 42.2
D27: 36 | E27: 5 | F27: 26.8 | G27: 30.8 | H27: 36.2 | I27: 37.6 | J27: 41.4 | M27: 5 | N27: 30.8 | O27: 36.2 | P27: 37.6 | Q27: 41.4 | R27: 43.1 | U27: 5 | V27: 37.1 | W27: 38.7 | X27: 42.4 | Y27: 43.7 | Z27: 46.9 | AC27: 5 | AD27: 38.7 | AE27: 42.4 | AF27: 43.7 | AG27: 46.9 | AH27: 48.4
D28: 40 | E28: 6 | F28: 30.2 | G28: 34.9 | H28: 40.9 | I28: 42.5 | J28: 46.8 | M28: 6 | N28: 34.9 | O28: 40.9 | P28: 42.5 | Q28: 46.8 | R28: 48.6 | U28: 6 | V28: 41.6 | W28: 43.7 | X28: 47.8 | Y28: 49.2 | Z28: 52.8 | AC28: 6 | AD28: 43.7 | AE28: 47.8 | AF28: 49.2 | AG28: 52.8 | AH28: 54.8
D29: 44 | E29: 7 | F29: 33.6 | G29: 38.7 | H29: 45.5 | I29: 47.3 | J29: 52 | M29: 7 | N29: 38.7 | O29: 45.5 | P29: 47.3 | Q29: 52 | R29: 54.1 | U29: 7 | V29: 46.6 | W29: 48.6 | X29: 53.3 | Y29: 54.6 | Z29: 59 | AC29: 7 | AD29: 48.6 | AE29: 53.3 | AF29: 54.6 | AG29: 59 | AH29: 61.1
D30: 48 | E30: 8 | F30: 37 | G30: 42.7 | H30: 50.1 | I30: 51.9 | J30: 57.1 | M30: 8 | N30: 42.7 | O30: 50.1 | P30: 51.9 | Q30: 57.1 | R30: 59.6 | U30: 8 | V30: 51.4 | W30: 53.5 | X30: 58.5 | Y30: 60.3 | Z30: 64.8 | AC30: 8 | AD30: 53.5 | AE30: 58.5 | AF30: 60.3 | AG30: 64.8 | AH30: 67.1
D31: 52 | E31: 9 | F31: 40.6 | G31: 46.6 | H31: 54.6 | I31: 56.4 | J31: 62.1 | M31: 9 | N31: 46.6 | O31: 54.6 | P31: 56.4 | Q31: 62.1 | R31: 64.6 | U31: 9 | V31: 56.4 | W31: 58.4 | X31: 63.7 | Y31: 65.5 | Z31: 70.4 | AC31: 9 | AD31: 58.4 | AE31: 63.7 | AF31: 65.5 | AG31: 70.4 | AH31: 73.3
D32: 56 | E32: 10 | F32: 43.8 | G32: 50.6 | H32: 59.3 | I32: 61.4 | J32: 67.6 | M32: 10 | N32: 50.6 | O32: 59.3 | P32: 61.4 | Q32: 67.6 | R32: 70.5 | U32: 10 | V32: 62.3 | W32: 63.4 | X32: 69.4 | Y32: 71.4 | Z32: 76.7 | AC32: 10 | AD32: 63.4 | AE32: 69.4 | AF32: 71.4 | AG32: 76.7 | AH32: 79.8
D33: 60 | E33: 11 | F33: 47.5 | G33: 54.4 | H33: 63.8 | I33: 66 | J33: 72.6 | M33: 11 | N33: 54.4 | O33: 63.8 | P33: 66 | Q33: 72.6 | R33: 75.6 | U33: 11 | V33: 65.8 | W33: 68.1 | X33: 74.5 | Y33: 76.5 | Z33: 82.2 | AC33: 11 | AD33: 68.1 | AE33: 74.5 | AF33: 76.5 | AG33: 82.2 | AH33: 85.7
D34: 64 | E34: 12 | F34: 50.8 | G34: 58.5 | H34: 68.5 | I34: 71.1 | J34: 78.2 | M34: 12 | N34: 58.5 | O34: 68.5 | P34: 71.1 | Q34: 78.2 | R34: 81.6 | U34: 12 | V34: 70.2 | W34: 73.2 | X34: 80.3 | Y34: 82.4 | Z34: 88.6 | AC34: 12 | AD34: 73.2 | AE34: 80.3 | AF34: 82.4 | AG34: 88.6 | AH34: 92
F36: 1 | G36: 2 | H36: 3 | I36: 4 | J36: 5 | N36: 1 | O36: 2 | P36: 3 | Q36: 4 | R36: 5 | V36: 1 | W36: 2 | X36: 3 | Y36: 4 | Z36: 5 | AD36: 1 | AE36: 2 | AF36: 3 | AG36: 4 | AH36: 5
C37: 8 (3) | D37: 20 | E37: 1 | F37: 16.8 | G37: 18.9 | H37: 21 | I37: 21.4 | J37: 23.2 | M37: 1 | N37: 18.9 | O37: 21 | P37: 21.4 | Q37: 23.2 | R37: 24.2 | U37: 1 | V37: 22.9 | W37: 24 | X37: 25.5 | Y37: 26.3 | Z37: 28.2 | AC37: 1 | AD37: 24 | AE37: 25.5 | AF37: 26.3 | AG37: 28.2 | AH37: 29.3
D38: 24 | E38: 2 | F38: 21.3 | G38: 24 | H38: 26.5 | I38: 27.4 | J38: 29.6 | M38: 2 | N38: 24 | O38: 26.5 | P38: 27.4 | Q38: 29.6 | R38: 31.1 | U38: 2 | V38: 30 | W38: 30.6 | X38: 32.6 | Y38: 33.5 | Z38: 36.1 | AC38: 2 | AD38: 30.6 | AE38: 32.6 | AF38: 33.5 | AG38: 36.1 | AH38: 37.5
D39: 28 | E39: 3 | F39: 26.6 | G39: 29 | H39: 32 | I39: 32.9 | J39: 35.5 | M39: 3 | N39: 29 | O39: 32 | P39: 32.9 | Q39: 35.5 | R39: 37.2 | U39: 3 | V39: 36 | W39: 37 | X39: 39.2 | Y39: 40.2 | Z39: 43.4 | AC39: 3 | AD39: 37 | AE39: 39.2 | AF39: 40.2 | AG39: 43.4 | AH39: 45.1
D40: 32 | E40: 4 | F40: 31.5 | G40: 34.1 | H40: 37.6 | I40: 38.8 | J40: 41.9 | M40: 4 | N40: 34.1 | O40: 37.6 | P40: 38.8 | Q40: 41.9 | R40: 44 | U40: 4 | V40: 42.6 | W40: 43.5 | X40: 46.4 | Y40: 47.5 | Z40: 51.3 | AC40: 4 | AD40: 43.5 | AE40: 46.4 | AF40: 47.5 | AG40: 51.3 | AH40: 53.3
D41: 36 | E41: 5 | F41: 36.3 | G41: 39.1 | H41: 43.3 | I41: 44.6 | J41: 48.1 | M41: 5 | N41: 39.1 | O41: 43.3 | P41: 44.6 | Q41: 48.1 | R41: 50.5 | U41: 5 | V41: 49 | W41: 50.2 | X41: 55.2 | Y41: 54.6 | Z41: 58.9 | AC41: 5 | AD41: 50.2 | AE41: 55.2 | AF41: 54.6 | AG41: 58.9 | AH41: 61.2
D42: 40 | E42: 6 | F42: 41.1 | G42: 44.3 | H42: 49 | I42: 50.3 | J42: 54.4 | M42: 6 | N42: 44.3 | O42: 49 | P42: 50.3 | Q42: 54.4 | R42: 56.9 | U42: 6 | V42: 55 | W42: 56.5 | X42: 60.1 | Y42: 61.8 | Z42: 66.6 | AC42: 6 | AD42: 56.5 | AE42: 60.1 | AF42: 61.8 | AG42: 66.6 | AH42: 69.1
D43: 44 | E43: 7 | F43: 46 | G43: 49.3 | H43: 54.4 | I43: 56 | J43: 60.6 | M43: 7 | N43: 49.3 | O43: 54.4 | P43: 56 | Q43: 60.6 | R43: 63.3 | U43: 7 | V43: 61.6 | W43: 63 | X43: 66.8 | Y43: 68.8 | Z43: 74 | AC43: 7 | AD43: 63 | AE43: 66.8 | AF43: 68.8 | AG43: 74 | AH43: 76.8
D44: 48 | E44: 8 | F44: 49.8 | G44: 53.9 | H44: 60 | I44: 61.7 | J44: 67 | M44: 8 | N44: 53.9 | O44: 60 | P44: 61.7 | Q44: 67 | R44: 70 | U44: 8 | V44: 68 | W44: 69.5 | X44: 73.8 | Y44: 74.6 | Z44: 81.7 | AC44: 8 | AD44: 69.5 | AE44: 73.8 | AF44: 74.6 | AG44: 81.7 | AH44: 84.9
D45: 52 | E45: 9 | F45: 56.1 | G45: 59.3 | H45: 65.3 | I45: 67.1 | J45: 72.6 | M45: 9 | N45: 59.3 | O45: 65.3 | P45: 67.1 | Q45: 72.6 | R45: 75.6 | U45: 9 | V45: 73.8 | W45: 75.8 | X45: 80.2 | Y45: 82.3 | Z45: 88.9 | AC45: 9 | AD45: 75.8 | AE45: 80.2 | AF45: 82.3 | AG45: 88.9 | AH45: 92.6
D46: 56 | E46: 10 | F46: 60.9 | G46: 64.6 | H46: 71.2 | I46: 73.2 | J46: 79.2 | M46: 10 | N46: 64.6 | O46: 71.2 | P46: 73.2 | Q46: 79.2 | R46: 82.7 | U46: 10 | V46: 80.7 | W46: 82.3 | X46: 87.5 | Y46: 89.8 | Z46: 96.9 | AC46: 10 | AD46: 82.3 | AE46: 87.5 | AF46: 89.8 | AG46: 96.9 | AH46: 100.9
D47: 60 | E47: 11 | F47: 65.7 | G47: 69.4 | H47: 76.4 | I47: 78.5 | J47: 84.9 | M47: 11 | N47: 69.4 | O47: 76.4 | P47: 78.5 | Q47: 84.9 | R47: 88.4 | U47: 11 | V47: 86.4 | W47: 88.7 | X47: 93.8 | Y47: 96.3 | Z47: 104 | AC47: 11 | AD47: 88.7 | AE47: 93.8 | AF47: 96.3 | AG47: 104 | AH47: 108.5
D48: 64 | E48: 12 | F48: 69.9 | G48: 74.5 | H48: 82.3 | I48: 84.7 | J48: 91.5 | M48: 12 | N48: 74.5 | O48: 82.3 | P48: 84.7 | Q48: 91.5 | R48: 95.4 | U48: 12 | V48: 93.3 | W48: 95.4 | X48: 101.1 | Y48: 103.9 | Z48: 112 | AC48: 12 | AD48: 95.4 | AE48: 101.1 | AF48: 103.9 | AG48: 112 | AH48: 116.7
D51: group1depth4rating= | E51: =HLOOKUP('Hidden Controls'!L4,'Hidden Data'!F8:J20,'Hidden Controls'!I4+1,FALSE) -> 9.3 | N51: group2depth4rating= | O51: =HLOOKUP('Hidden Controls'!L4,'Hidden Data'!N8:R20,'Hidden Controls'!I4+1,FALSE) -> 10.4 | W51: group3depth4rating= | X51: =HLOOKUP('Hidden Controls'!L4,'Hidden Data'!V8:Z20,'Hidden Controls'!I4+1,FALSE) -> 11.7 | AD51: group4depth4rating= | AE51: =HLOOKUP('Hidden Controls'!L4,'Hidden Data'!AD8:AH20,'Hidden Controls'!I4+1,FALSE) -> 12.2
D52: group1depth6rating= | E52: =HLOOKUP('Hidden Controls'!L4,'Hidden Data'!F22:J34,'Hidden Controls'!I4+1,FALSE) -> 13.5 | N52: group2depth6rating= | O52: =HLOOKUP('Hidden Controls'!L4,'Hidden Data'!N22:R34,'Hidden Controls'!I4+1,FALSE) -> 15.1 | W52: group3depth6rating= | X52: =HLOOKUP('Hidden Controls'!L4,'Hidden Data'!V22:Z34,'Hidden Controls'!I4+1,FALSE) -> 18.2 | AD52: group4depth6rating= | AE52: =HLOOKUP('Hidden Controls'!L4,'Hidden Data'!AD22:AH34,'Hidden Controls'!I4+1,FALSE) -> 18.8
D53: group1depth8rating= | E53: =HLOOKUP('Hidden Controls'!L4,'Hidden Data'!F36:J48,'Hidden Controls'!I4+1,FALSE) -> 16.8 | N53: group2depth8rating= | O53: =HLOOKUP('Hidden Controls'!L4,'Hidden Data'!N36:R48,'Hidden Controls'!I4+1,FALSE) -> 18.9 | W53: group3depth8rating= | X53: =HLOOKUP('Hidden Controls'!L4,'Hidden Data'!V36:Z48,'Hidden Controls'!I4+1,FALSE) -> 22.9 | AD53: group4depth8rating= | AE53: =HLOOKUP('Hidden Controls'!L4,'Hidden Data'!AD36:AH48,'Hidden Controls'!I4+1,FALSE) -> 24
D54: group1selected depth rating = | E54: =IF('Hidden Controls'!F4=1,'Hidden Data'!E51,IF('Hidden Controls'!F4=2,'Hidden Data'!E52,'Hidden Data'!E53)) -> 9.3 | N54: group2selected depth rating = | O54: =IF('Hidden Controls'!F4=1,'Hidden Data'!O51,IF('Hidden Controls'!F4=2,'Hidden Data'!O52,'Hidden Data'!O53)) -> 10.4 | W54: group3selected depth rating = | X54: =IF('Hidden Controls'!F4=1,'Hidden Data'!X51,IF('Hidden Controls'!F4=2,'Hidden Data'!X52,'Hidden Data'!X53)) -> 11.7 | AD54: group4selected depth rating = | AE54: =IF('Hidden Controls'!F4=1,'Hidden Data'!AE51,IF('Hidden Controls'!F4=2,'Hidden Data'!AE52,'Hidden Data'!AE53)) -> 12.2
K56: unit specific rating (EDR) = | L56: =IF('Hidden Controls'!C4=13, 'Hidden Data'!O54,IF(OR('Hidden Controls'!C4=8,'Hidden Controls'!C4=9),'Hidden Data'!X54,IF('Hidden Controls'!C4=12,'Hidden Data'!AE54,'Hidden Data'!E54))) -> 9.3
E58: Hot Water Correction Factors | L58: Steam Correction Factor
D59: index | E59: 1 | F59: 2 | G59: 3 | H59: 4 | I59: 5 | K59: index | L59: 1 | M59: 2 | N59: 3 | O59: 4 | P59: 5 | Q59: 6 | R59: 7
C60: index | E60: 55 | F60: 60 | G60: 65 | H60: 70 | I60: 75 | K60: psig | L60: 0.899 | M60: 5 | N60: 10 | O60: 15 | P60: 20 | Q60: 25 | R60: 50
C61: 1 | D61: 100 | E61: 0.17 | F61: 0.14 | G61: 0.12 | H61: 0.09 | I61: 0.07 | K61: factor | L61: 1 | M61: 1.12 | N61: 1.25 | O61: 1.36 | P61: 1.46 | Q61: 1.56 | R61: 1.93
C62: 2 | D62: 110 | E62: 0.23 | F62: 0.2 | G62: 0.17 | H62: 0.14 | I62: 0.12
C63: 3 | D63: 120 | E63: 0.29 | F63: 0.26 | G63: 0.23 | H63: 0.2 | I63: 0.17
C64: 4 | D64: 130 | E64: 0.35 | F64: 0.32 | G64: 0.29 | H64: 0.26 | I64: 0.23 | L64: interpolate value | M64: ='Rate Convector'!E18 -> 0.899
C65: 5 | D65: 140 | E65: 0.43 | F65: 0.39 | G65: 0.35 | H65: 0.32 | I65: 0.29 | L65: FIND X INDEX | M65: =IF(MATCH(M64,'Hidden Data'!L60:R60,1)=7,6,MATCH(M64,'Hidden Data'!L60:R60,1)) -> 1
C66: 6 | D66: 150 | E66: 0.5 | F66: 0.46 | G66: 0.43 | H66: 0.39 | I66: 0.35
C67: 7 | D67: 160 | E67: 0.58 | F67: 0.54 | G67: 0.51 | H67: 0.47 | I67: 0.43 | K67: result = | L67: =INDEX(L61:R61,1,M65) -> 1 | M67: PLUS ( | N67: =M64 -> 0.899 | O67: MINUS | P67: =INDEX(L60:R60,1,M65) -> 0.899 | Q67: ) MULT BY ( | R67: =INDEX(L61:R61,1,M65+1) -> 1.12 | S67: ) MINUS ( | T67: =INDEX(L61:R61,1,M65) -> 1 | U67: )) DIVIDE BY | V67: =INDEX(L60:R60,1,M65+1) -> 5 | W67: MINUS | X67: =INDEX(L60:R60,1,M65) -> 0.899
C68: 8 | D68: 170 | E68: 0.67 | F68: 0.63 | G68: 0.58 | H68: 0.54 | I68: 0.51 | K68: RESULT | L68: =INDEX(L61:R61,1,M65)+((N67-P67)*(R67-T67)/(V67-X67)) -> 1
C69: 9 | D69: 180 | E69: 0.76 | F69: 0.71 | G69: 0.67 | H69: 0.63 | I69: 0.58
C70: 10 | D70: 190 | E70: 0.85 | F70: 0.81 | G70: 0.76 | H70: 0.71 | I70: 0.67
C71: 11 | D71: 200 | E71: 0.95 | F71: 0.9 | G71: 0.85 | H71: 0.81 | I71: 0.76
C72: 12 | D72: 210 | E72: 1.05 | F72: 1 | G72: 0.95 | H72: 0.9 | I72: 0.85
C73: 13 | D73: 215 | E73: 1.1 | F73: 1.05 | G73: 1 | H73: 0.95 | I73: 0.9
C74: 14 | D74: 220 | E74: 1.15 | F74: 1.1 | G74: 1.05 | H74: 1 | I74: 0.95
C75: 15 | D75: 230 | E75: 1.26 | F75: 1.2 | G75: 1.15 | H75: 1.1 | I75: 1.05
C76: 16 | D76: 240 | E76: 1.37 | F76: 1.32 | G76: 1.26 | H76: 1.21 | I76: 1.15
C77: 17 | D77: 250 | E77: 1.47 | F77: 1.43 | G77: 1.37 | H77: 1.32 | I77: 1.27
C79: AWT interpolate value | D79: ='Rate Convector'!E24 -> 215 | I79: EAT Interpolate Value | J79: ='Rate Convector'!E22 -> 65
B80: Find EAT Index | C80: =IF(MATCH(J79,E60:I60,1)=5,4,MATCH(J79,E60:I60,1)) -> 3
B81: FIND AWT INDEX | C81: =IF(MATCH(D79,D61:D77,1)=17,16,MATCH(D79,D61:D77,1)) -> 13
B83: Low EAT Value | C83: =INDEX(E61:I77,C81,C80) -> 1 | D83: plus ( | E83: =D79 -> 215 | F83: MINUS | G83: =INDEX(D61:D77,C81,1) -> 215 | H83: ) MULT BY ( | I83: =INDEX(E61:I77,C81+1,C80) -> 1.05 | J83: ) MINUS ( | K83: =INDEX(E61:I77,C81,C80) -> 1 | L83: )) DIVIDE BY | M83: =INDEX(D61:D77,C81+1,1) -> 220 | N83: MINUS | O83: =INDEX(D61:D77,C81,1) -> 215
B84: RESULT | C84: =C83+((E83-G83)*(I83-K83)/(M83-O83)) -> 1
B86: High EAT Value = | C86: =INDEX(E61:I77,C81,C80+1) -> 0.95 | D86: plus ( | E86: =D79 -> 215 | F86: MINUS | G86: =INDEX(D61:D77,C81,1) -> 215 | H86: ) MULT BY ( | I86: =INDEX(E61:I77,C81+1,C80+1) -> 1 | J86: ) MINUS ( | K86: =INDEX(E61:I77,C81,C80+1) -> 0.95 | L86: )) DIVIDE BY | M86: =INDEX(D61:D77,C81+1,1) -> 220 | N86: MINUS | O86: =INDEX(D61:D77,C81,1) -> 215
B87: RESULT | C87: =C86+((E86-G86)*(I86-K86)/(M86-O86)) -> 0.95
C89: =C84 -> 1 | D89: plus ( | E89: =J79 -> 65 | F89: MINUS | G89: =INDEX(E60:I60,1,C80) -> 65 | H89: ) MULT BY ( | I89: =C87 -> 0.95 | J89: ) MINUS ( | K89: =C84 -> 1 | L89: )) DIVIDE BY | M89: =INDEX(E60:I60,1,C80+1) -> 70 | N89: MINUS | O89: =INDEX(E60:I60,1,C80) -> 65
B90: result | C90: =C89+(E89-G89)*(I89-K89)/(M89-O89) -> 1
C97: From Chapter 31 ASHRAE Fundementals Handbook 2009 | R97: From Chapter 31 ASHRAE Fundementals Handbook 2009
C98: Table 11 Specific Heat of Aqueous Solutions of Propylene Glycol | R98: Table 11 Specific Heat of Aqueous Solutions of Ethylene Glycol
D99: Concentrations in Volume Percent Propylene Glycol | S99: Concentrations in Volume Percent Propylene Glycol
D100: Temperature In °F | F100: 0 | G100: 10 | H100: 20 | I100: 30 | J100: 40 | K100: 50 | S100: Temperature In °F | U100: 0 | V100: 10 | W100: 20 | X100: 30 | Y100: 40 | Z100: 50
F101: 1 | G101: 2 | H101: 3 | I101: 4 | J101: 5 | K101: 6 | U101: 1 | V101: 2 | W101: 3 | X101: 4 | Y101: 5 | Z101: 6
D102: 100 | E102: 1 | F102: 1 | G102: 0.981 | H102: 0.959 | I102: 0.931 | J102: 0.899 | K102: 0.861 | S102: 100 | T102: 1 | U102: 1 | V102: 0.957 | W102: 0.922 | X102: 0.883 | Y102: 0.843 | Z102: 0.8
D103: 110 | E103: 2 | F103: 1 | G103: 0.983 | H103: 0.962 | I103: 0.935 | J103: 0.903 | K103: 0.866 | S103: 110 | T103: 2 | U103: 1 | V103: 0.959 | W103: 0.925 | X103: 0.887 | Y103: 0.848 | Z103: 0.806
D104: 120 | E104: 3 | F104: 1 | G104: 0.985 | H104: 0.965 | I104: 0.939 | J104: 0.908 | K104: 0.871 | S104: 120 | T104: 3 | U104: 1 | V104: 0.961 | W104: 0.928 | X104: 0.891 | Y104: 0.852 | Z104: 0.811
D105: 130 | E105: 4 | F105: 1 | G105: 0.987 | H105: 0.967 | I105: 0.942 | J105: 0.912 | K105: 0.876 | S105: 130 | T105: 4 | U105: 1 | V105: 0.964 | W105: 0.931 | X105: 0.895 | Y105: 0.857 | Z105: 0.816
D106: 140 | E106: 5 | F106: 1 | G106: 0.989 | H106: 0.97 | I106: 0.946 | J106: 0.916 | K106: 0.881 | S106: 140 | T106: 5 | U106: 1 | V106: 0.966 | W106: 0.934 | X106: 0.898 | Y106: 0.861 | Z106: 0.821
D107: 150 | E107: 6 | F107: 1 | G107: 0.991 | H107: 0.973 | I107: 0.95 | J107: 0.921 | K107: 0.886 | S107: 150 | T107: 6 | U107: 1 | V107: 0.968 | W107: 0.937 | X107: 0.902 | Y107: 0.865 | Z107: 0.826
D108: 160 | E108: 7 | F108: 1 | G108: 0.993 | H108: 0.976 | I108: 0.953 | J108: 0.925 | K108: 0.891 | S108: 160 | T108: 7 | U108: 1 | V108: 0.971 | W108: 0.94 | X108: 0.906 | Y108: 0.87 | Z108: 0.831
D109: 170 | E109: 8 | F109: 1 | G109: 0.996 | H109: 0.979 | I109: 0.957 | J109: 0.929 | K109: 0.896 | S109: 170 | T109: 8 | U109: 1 | V109: 0.973 | W109: 0.943 | X109: 0.91 | Y109: 0.874 | Z109: 0.836
D110: 180 | E110: 9 | F110: 1 | G110: 0.998 | H110: 0.982 | I110: 0.961 | J110: 0.934 | K110: 0.902 | S110: 180 | T110: 9 | U110: 1 | V110: 0.975 | W110: 0.946 | X110: 0.913 | Y110: 0.879 | Z110: 0.842
D111: 190 | E111: 10 | F111: 1 | G111: 1 | H111: 0.985 | I111: 0.964 | J111: 0.938 | K111: 0.907 | S111: 190 | T111: 10 | U111: 1 | V111: 0.978 | W111: 0.949 | X111: 0.917 | Y111: 0.883 | Z111: 0.847
D112: 200 | E112: 11 | F112: 1 | G112: 1.002 | H112: 0.988 | I112: 0.968 | J112: 0.943 | K112: 0.912 | S112: 200 | T112: 11 | U112: 1 | V112: 0.98 | W112: 0.952 | X112: 0.921 | Y112: 0.888 | Z112: 0.852
D113: 210 | E113: 12 | F113: 1 | G113: 1.004 | H113: 0.991 | I113: 0.971 | J113: 0.947 | K113: 0.917 | S113: 210 | T113: 12 | U113: 1 | V113: 0.982 | W113: 0.955 | X113: 0.925 | Y113: 0.892 | Z113: 0.857
D114: 220 | E114: 13 | F114: 1 | G114: 1.006 | H114: 0.994 | I114: 0.975 | J114: 0.951 | K114: 0.922 | S114: 220 | T114: 13 | U114: 1 | V114: 0.985 | W114: 0.958 | X114: 0.929 | Y114: 0.897 | Z114: 0.862
D115: 230 | E115: 14 | F115: 1 | G115: 1.008 | H115: 0.996 | I115: 0.979 | J115: 0.956 | K115: 0.927 | S115: 230 | T115: 14 | U115: 1 | V115: 0.987 | W115: 0.961 | X115: 0.932 | Y115: 0.901 | Z115: 0.867
D116: 240 | E116: 15 | F116: 1 | G116: 1.011 | H116: 0.999 | I116: 0.982 | J116: 0.96 | K116: 0.932 | S116: 240 | T116: 15 | U116: 1 | V116: 0.989 | W116: 0.964 | X116: 0.936 | Y116: 0.905 | Z116: 0.872
D117: 250 | E117: 16 | F117: 1 | G117: 1.013 | H117: 1.002 | I117: 0.986 | J117: 0.965 | K117: 0.937 | S117: 250 | T117: 16 | U117: 1 | V117: 0.992 | W117: 0.967 | X117: 0.94 | Y117: 0.91 | Z117: 0.877
C119: AWT interpolate value | D119: =D79 -> 215 | I119: glycol percentage Value | J119: ='Rate Convector'!E26 -> 0 | R119: AWT interpolate value | S119: =D79 -> 215 | X119: glycol percentage Value | Y119: ='Rate Convector'!E26 -> 0
B120: Find glycol Index | C120: =IF(MATCH(J119,F100:K100,1)=6,5,MATCH(J119,F100:K100,1)) -> 1 | Q120: Find glycol Index | R120: =IF(MATCH(Y119,U100:Z100,1)=6,5,MATCH(Y119,U100:Z100,1)) -> 1
B121: FIND AWT INDEX | C121: =IF(MATCH(D119,D102:D117,1)=16,15,MATCH(D119,D102:D117,1)) -> 12 | Q121: FIND AWT INDEX | R121: =IF(MATCH(S119,S102:S117,1)=16,15,MATCH(S119,S102:S117,1)) -> 12
B123: Low glycol Value | C123: =INDEX(F102:K117,C121,C120) -> 1 | D123: plus ( | E123: =D119 -> 215 | F123: MINUS | G123: =INDEX(D102:D117,C121,1) -> 210 | H123: ) MULT BY ( | I123: =INDEX(F102:K117,C121+1,C120) -> 1 | J123: ) MINUS ( | K123: =INDEX(F102:K117,C121,C120) -> 1 | L123: )) DIVIDE BY | M123: =INDEX(D102:D117,C121+1,1) -> 220 | N123: MINUS | O123: =INDEX(D102:D117,C121,1) -> 210 | Q123: Low glycol Value | R123: =INDEX(U102:Z117,R121,R120) -> 1 | S123: plus ( | T123: =S119 -> 215 | U123: MINUS | V123: =INDEX(S102:S117,R121,1) -> 210 | W123: ) MULT BY ( | X123: =INDEX(U102:Z117,R121+1,R120) -> 1 | Y123: ) MINUS ( | Z123: =INDEX(U102:Z117,R121,R120) -> 1 | AA123: )) DIVIDE BY | AB123: =INDEX(S102:S117,R121+1,1) -> 220 | AC123: MINUS | AD123: =INDEX(S102:S117,R121,1) -> 210
B124: RESULT | C124: =C123+((E123-G123)*(I123-K123)/(M123-O123)) -> 1 | Q124: RESULT | R124: =R123+((T123-V123)*(X123-Z123)/(AB123-AD123)) -> 1
B126: High glycol Value = | C126: =INDEX(F102:K117,C121,C120+1) -> 1.004 | D126: plus ( | E126: =D119 -> 215 | F126: MINUS | G126: =INDEX(D102:D117,C121,1) -> 210 | H126: ) MULT BY ( | I126: =INDEX(F102:K117,C121+1,C120+1) -> 1.006 | J126: ) MINUS ( | K126: =INDEX(F102:K117,C121,C120+1) -> 1.004 | L126: )) DIVIDE BY | M126: =INDEX(D102:D117,C121+1,1) -> 220 | N126: MINUS | O126: =INDEX(D102:D117,C121,1) -> 210 | Q126: High glycol Value = | R126: =INDEX(U102:Z117,R121,R120+1) -> 0.982 | S126: plus ( | T126: =S119 -> 215 | U126: MINUS | V126: =INDEX(S102:S117,R121,1) -> 210 | W126: ) MULT BY ( | X126: =INDEX(U102:Z117,R121+1,R120+1) -> 0.985 | Y126: ) MINUS ( | Z126: =INDEX(U102:Z117,R121,R120+1) -> 0.982 | AA126: )) DIVIDE BY | AB126: =INDEX(S102:S117,R121+1,1) -> 220 | AC126: MINUS | AD126: =INDEX(S102:S117,R121,1) -> 210
B127: RESULT | C127: =C126+((E126-G126)*(I126-K126)/(M126-O126)) -> 1.005 | Q127: RESULT | R127: =R126+((T126-V126)*(X126-Z126)/(AB126-AD126)) -> 0.9835
C129: =C124 -> 1 | D129: plus ( | E129: =J119 -> 0 | F129: MINUS | G129: =INDEX(F100:K100,1,C120) -> 0 | H129: ) MULT BY ( | I129: =C127 -> 1.005 | J129: ) MINUS ( | K129: =C124 -> 1 | L129: )) DIVIDE BY | M129: =INDEX(F100:K100,1,C120+1) -> 10 | N129: MINUS | O129: =INDEX(F100:K100,1,C120) -> 0 | R129: =R124 -> 1 | S129: plus ( | T129: =Y119 -> 0 | U129: MINUS | V129: =INDEX(U100:Z100,1,R120) -> 0 | W129: ) MULT BY ( | X129: =R127 -> 0.9835 | Y129: ) MINUS ( | Z129: =R124 -> 1 | AA129: )) DIVIDE BY | AB129: =INDEX(U100:Z100,1,R120+1) -> 10 | AC129: MINUS | AD129: =INDEX(U100:Z100,1,R120) -> 0
B130: glycol cor. Factor | C130: =C129+(E129-G129)*(I129-K129)/(M129-O129) -> 1 | Q130: glycol cor. Factor | R130: =R129+(T129-V129)*(X129-Z129)/(AB129-AD129) -> 1
O131: Final Glycol Factor | Q131: =IF('Hidden Controls'!L20=1,1,IF('Hidden Controls'!L20=2,'Hidden Data'!C130,'Hidden Data'!R130)) -> 1
E133: 4" pressure loss | I133: 6" pressure loss | M133: 8" pressure loss
C134: flow | E134: 1 | G134: flow | I134: 1 | K134: flow | M134: 1
C135: 0 | D135: 1 | E135: 0 | G135: 0 | H135: 1 | I135: 0 | K135: 0 | L135: 1 | M135: 0
C136: 0.25 | D136: 2 | E136: 0.044 | G136: 0.5 | H136: 2 | I136: 0.07 | K136: 0.5 | L136: 2 | M136: 0.046
C137: 0.5 | D137: 3 | E137: 0.16 | G137: 1 | H137: 3 | I137: 0.27 | K137: 1 | L137: 3 | M137: 0.167
C138: 1 | D138: 4 | E138: 0.597 | G138: 2 | H138: 4 | I138: 1.047 | K138: 2 | L138: 4 | M138: 0.616
C139: 2 | D139: 5 | E139: 2.22 | G139: 3 | H139: 5 | I139: 2.26 | K139: 3 | L139: 5 | M139: 1.367
G140: 4 | H140: 6 | I140: 3.793 | K140: 4 | L140: 6 | M140: 2.38
K141: 5 | L141: 7 | M141: 3.673
F143: flow interpolate value | G143: ='Rate Convector'!E29 -> 0.223
B145: 4" depth interpolation
B146: Find flow Index | C146: =IF(MATCH(G143,C135:C139,1)=5,4,MATCH(G143,C135:C139,1)) -> 1
B147: 4" Depth Value | C147: =INDEX(E135:E139,C146,1) -> 0 | D147: plus ( | E147: =G143 -> 0.223 | F147: MINUS | G147: =INDEX(C135:C139,C146,1) -> 0 | H147: ) MULT BY ( | I147: =INDEX(E135:E139,C146+1,1) -> 0.044 | J147: ) MINUS ( | K147: =INDEX(E135:E139,C146,1) -> 0 | L147: )) DIVIDE BY | M147: =INDEX(C135:C139,C146+1,1) -> 0.25 | N147: MINUS | O147: =INDEX(C135:C139,C146,1) -> 0
B148: RESULT | C148: =C147+((E147-G147)*(I147-K147)/(M147-O147)) -> 0.039248
B149: check for high flow | C149: =IF(G143>C139,1,0) -> 0 | E149: valid result | F149: =IF(C149=1,"*",C148) -> 0.039248
B151: 6" depth interpolation
B152: Find flow Index | C152: =IF(MATCH(G143,G135:G140,1)=6,5,MATCH(G143,G135:G140,1)) -> 1
B153: 4" Depth Value | C153: =INDEX(I135:I140,C152,1) -> 0 | D153: plus ( | E153: =G143 -> 0.223 | F153: MINUS | G153: =INDEX(G135:G140,C152,1) -> 0 | H153: ) MULT BY ( | I153: =INDEX(I135:I140,C152+1,1) -> 0.07 | J153: ) MINUS ( | K153: =INDEX(I135:I140,C152,1) -> 0 | L153: )) DIVIDE BY | M153: =INDEX(G135:G140,C152+1,1) -> 0.5 | N153: MINUS | O153: =INDEX(G135:G140,C152,1) -> 0
B154: RESULT | C154: =C153+((E153-G153)*(I153-K153)/(M153-O153)) -> 0.03122
B155: check for high flow | C155: =IF(G143>G140,1,0) -> 0 | E155: valid result | F155: =IF(C155=1,"*",C154) -> 0.03122
B157: 8" depth interpolation
B158: Find flow Index | C158: =IF(MATCH(G143,K135:K141,1)=7,6,MATCH(G143,K135:K141,1)) -> 1
B159: 4" Depth Value | C159: =INDEX(M135:M141,C158,1) -> 0 | D159: plus ( | E159: =G143 -> 0.223 | F159: MINUS | G159: =INDEX(K135:K141,C158,1) -> 0 | H159: ) MULT BY ( | I159: =INDEX(M135:M141,C158+1,1) -> 0.046 | J159: ) MINUS ( | K159: =INDEX(M135:M141,C158,1) -> 0 | L159: )) DIVIDE BY | M159: =INDEX(K135:K141,C158+1,1) -> 0.5 | N159: MINUS | O159: =INDEX(K135:K141,C158,1) -> 0
B160: RESULT | C160: =C159+((E159-G159)*(I159-K159)/(M159-O159)) -> 0.020516
B161: check for high flow | C161: =IF(G143>K141,1,0) -> 0 | E161: valid result | F161: =IF(C161=1,"*",C160) -> 0.020516
B163: Unit Selected result | C163: =IF('Hidden Controls'!F4=1,'Hidden Data'!F149,IF('Hidden Controls'!F4=2,'Hidden Data'!F155,'Hidden Data'!F161)) -> 0.039248
A164: Check unit high flow | C164: =IF(AND('Hidden Controls'!F4=1,C149=1),1,IF(AND('Hidden Controls'!F4=2, C155=1),1,IF(AND('Hidden Controls'!F4=3,C161=1),1,0))) -> 0
I170: Density of Water | M170: Viscosity of Water
I171: Temp (F) | J171: Density (lb/ft^3) | K171: Density (slug/ft^3) | M171: Temp (F) | N171: Dynamic Viscosity (lb-sec/ft^2) | P171: target | Q171: ='Rate Convector'!E24 -> 215
I172: 50 | J172: 62.408 | K172: =J172*0.031080949 -> 1.939699865 | M172: 50 | N172: 2.73e-05 | P172: index low | Q172: =IF(MATCH(Q171,I172:I189,1)=18, 17,MATCH(Q171,I172:I189,1)) -> 17
I173: 60 | J173: 62.366 | K173: =J173*0.031080949 -> 1.938394465 | M173: 60 | N173: 2.344e-05 | P173: index high | Q173: =Q172+1 -> 18
B174: intermediate calculations | I174: 70 | J174: 62.3 | K174: 1.936343123 | M174: 70 | N174: 2.034e-05
C175: fluid viscosity (u) | D175: =Q185 + N234 + AB234 -> 5.79e-06 | E175: lb-sec/ft^2 | I175: 80 | J175: 62.217 | K175: 1.933763404 | M175: 80 | N175: 1.791e-05 | P175: temp low | Q175: =INDEX(I172:I189,Q172,1) -> 210
C176: fluid density (p) | D176: =Q184 +M213+ AA213 -> 1.856620489 | E176: slug/ft^3 | I176: 90 | J176: 62.118 | K176: 1.93068639 | M176: 90 | N176: 1.5e-05 | P176: temp high | Q176: =INDEX(I172:I189,Q173,1) -> 220
B177: tube inside diameter | D177: 0.341 | E177: inches | F177: (measured data) | I177: 100 | J177: 61.998 | K177: 1.926956676 | M177: 100 | N177: 1.423e-05
C178: tube inside diameter | D178: =D177/12 -> 0.02841666667 | E178: ft | I178: 110 | J178: 61.859 | K178: 1.922636424 | M178: 110 | N178: 1.294e-05 | P178: density low | Q178: =INDEX(K172:K189,Q172,1) -> 1.860505607
C179: Tube Roughness ( e ) | D179: 5e-06 | E179: ft | I179: 120 | J179: 61.719 | K179: 1.918285091 | M179: 120 | N179: 1.164e-05 | P179: density high | Q179: =INDEX(K172:K189,Q173,1) -> 1.85273537
C180: Number of Tubes | D180: ='Hidden Controls'!F4+1 -> 2 | I180: 130 | J180: 61.553 | K180: 1.913125654 | M180: 130 | N180: 1.069e-05
C181: GPM per tube | D181: ='Rate Convector'!E29/D180 -> 0.1115 | I181: 140 | J181: 61.386 | K181: 1.907935135 | M181: 140 | N181: 9.74e-06 | P181: viscosity low | Q181: =INDEX(N172:N189,Q172,1) -> 5.96e-06
C182: Velocity = | D182: =D181*0.1336809/(60*PI()*(0.5*D178)^2) -> 0.3917029393 | E182: fps | I182: 150 | J182: 61.196 | K182: 1.902029755 | M182: 150 | N182: 9.03e-06 | P182: viscosity high | Q182: =INDEX(N172:N189,Q173,1) -> 5.62e-06
C183: Reynolds No. (Re) | D183: =D178*D182*D176/D175 -> 3569.230031 | I183: 160 | J183: 61.006 | K183: 1.896124375 | M183: 160 | N183: 8.32e-06
C184: Type of Flow | D184: =IF(D183<2300,"Laminar Flow",IF(D183>4000,"Completely Turbulent Flow","Transition Flow Region")) -> Transition Flow Region | I184: 170 | J184: 60.799 | K184: 1.889690618 | M184: 170 | N184: 7.77e-06 | P184: density | Q184: =IF('Hidden Controls'!L20=1,((Q171-Q175)/(Q176-Q175))*(Q179-Q178) +Q178,0) -> 1.856620489
C185: Glycol type | D185: =INDEX('Hidden Controls'!J20:J22,'Hidden Controls'!L20) -> Water | I185: 180 | J185: 60.586 | K185: 1.883070376 | M185: 180 | N185: 7.21e-06 | P185: viscosity | Q185: =IF('Hidden Controls'!L20=1,((Q171-Q175)/(Q176-Q175))*(Q182-Q181) +Q181,0) -> 5.79e-06
I186: 190 | J186: 60.361 | K186: 1.876077163 | M186: 190 | N186: 6.78e-06
I187: 200 | J187: 60.135 | K187: 1.869052868 | M187: 200 | N187: 6.34e-06
I188: 210 | J188: 59.86 | K188: 1.860505607 | M188: 210 | N188: 5.96e-06
I189: 220 | J189: 59.61 | K189: 1.85273537 | M189: 220 | N189: 5.62e-06
E191: Density of Propylene Glycol | S191: Density of Ethylene Glycol
E192: percent Glycol | S192: percent Glycol
E193: 0 | F193: 10 | G193: 20 | H193: 30 | I193: 40 | J193: 50 | K193: 60 | S193: 0 | T193: 10 | U193: 20 | V193: 30 | W193: 40 | X193: 50 | Y193: 60
D194: Temp (F) | E194: Density (slug/ft^3) | F194: Density (slug/ft^3) | G194: Density (slug/ft^3) | H194: Density (slug/ft^3) | I194: Density (slug/ft^3) | J194: Density (slug/ft^3) | K194: Density (slug/ft^3) | R194: Temp (F) | S194: Density (slug/ft^3) | T194: Density (slug/ft^3) | U194: Density (slug/ft^3) | V194: Density (slug/ft^3) | W194: Density (slug/ft^3) | X194: Density (slug/ft^3) | Y194: Density (slug/ft^3)
D195: 50 | E195: 1.939699865 | F195: 1.964315977 | G195: 1.98669426 | H195: 2.005653639 | I195: 2.022126542 | J195: 2.03580216 | K195: 2.047302111 | R195: 50 | S195: 1.939699865 | T195: 1.97426188 | U195: 2.006586067 | V195: 2.037356207 | W195: 2.06595068 | X195: 2.092991106 | Y195: 2.118788293
D196: 60 | E196: 1.938394465 | F196: 1.961207882 | G196: 1.982653737 | H196: 2.001302306 | I196: 2.01715359 | J196: 2.030518398 | K196: 2.04139673 | R196: 60 | S196: 1.938394465 | T196: 1.971153786 | U196: 2.003167163 | V196: 2.033626493 | W196: 2.061910157 | X196: 2.088639773 | Y196: 2.114126151
D197: 70 | E197: 1.936343123 | F197: 1.957478168 | G197: 1.978613213 | H197: 1.996640164 | I197: 2.011869829 | J197: 2.024613018 | K197: 2.034869731 | R197: 70 | S197: 1.936343123 | T197: 1.967734881 | U197: 1.999437449 | V197: 2.02958597 | W197: 2.057558824 | X197: 2.08397763 | Y197: 2.109153199
D198: 80 | E198: 1.933763404 | F198: 1.953748454 | G198: 1.97426188 | H198: 1.991667212 | I198: 2.006275258 | J198: 2.018707638 | K198: 2.028342732 | M198: target | N198: =Q171 -> 215 | O198: ='Rate Convector'!E26 -> 0 | R198: 80 | S198: 1.933763404 | T198: 1.964005167 | U198: 1.995707735 | V198: 2.025545446 | W198: 2.052896681 | X198: 2.079315488 | Y198: 2.103869438 | AA198: target | AB198: =Q171 -> 215 | AC198: ='Rate Convector'!E26 -> 0
D199: 90 | E199: 1.93068639 | F199: 1.949707931 | G199: 1.969599738 | H199: 1.986383451 | I199: 2.000369878 | J199: 2.012180638 | K199: 2.021504923 | M199: index low | N199: =IF(MATCH(N198,D195:D212,1)=18, 17,MATCH(N198,D195:D212,1)) -> 17 | O199: =IF(MATCH(O198,E193:K193,1)=7, 6,MATCH(O198,E193:K193,1)) -> 1 | R199: 90 | S199: 1.93068639 | T199: 1.960275453 | U199: 1.991356402 | V199: 2.020883304 | W199: 2.048234539 | X199: 2.074031727 | Y199: 2.098274867 | AA199: index low | AB199: =IF(MATCH(AB198,R195:R212,1)=18, 17,MATCH(AB198,R195:R212,1)) -> 17 | AC199: =IF(MATCH(AC198,S193:Y193,1)=7, 6,MATCH(AC198,S193:Y193,1)) -> 1
D200: 100 | E200: 1.926956676 | F200: 1.945356598 | G200: 1.964315977 | H200: 1.98078888 | I200: 1.994153688 | J200: 2.005653639 | K200: 2.014356305 | M200: index high | N200: =N199+1 -> 18 | O200: =O199+1 -> 2 | R200: 100 | S200: 1.926956676 | T200: 1.955924121 | U200: 1.98700507 | V200: 2.015910352 | W200: 2.042950778 | X200: 2.068437156 | Y200: 2.092369487 | AA200: index high | AB200: =AB199+1 -> 18 | AC200: =AC199+1 -> 2
D201: 110 | E201: 1.922636424 | F201: 1.940694456 | G201: 1.959032215 | H201: 1.974883499 | I201: 1.987626689 | J201: 1.998505021 | K201: 2.006896877 | N201: temp | O201: percent | R201: 110 | S201: 1.922636424 | T201: 1.951572788 | U201: 1.982032118 | V201: 2.0109374 | W201: 2.037667016 | X201: 2.062842585 | Y201: 2.086464106 | AB201: temp | AC201: percent
D202: 120 | E202: 1.918285091 | F202: 1.935721504 | G202: 1.953437645 | H202: 1.9683565 | I202: 1.981099689 | J202: 1.991045593 | K202: 1.99912664 | M202: low | N202: =INDEX(D195:D212,N199,1) -> 210 | O202: =INDEX(E193:K193,1,O199) -> 0 | R202: 120 | S202: 1.918285091 | T202: 1.946599836 | U202: 1.977059166 | V202: 2.005342829 | W202: 2.031761636 | X202: 2.056626395 | Y202: 2.079937107 | AA202: low | AB202: =INDEX(R195:R212,AB199,1) -> 210 | AC202: =INDEX(S193:Y193,1,AC199) -> 0
D203: 130 | E203: 1.913125654 | F203: 1.930437742 | G203: 1.947532264 | H203: 1.961829501 | I203: 1.973951071 | J203: 1.983586165 | K203: 1.991045593 | M203: high | N203: =INDEX(D195:D212,N200,1) -> 220 | O203: =INDEX(E193:K193,1,O200) -> 10 | R203: 130 | S203: 1.913125654 | T203: 1.941626884 | U203: 1.971464595 | V203: 1.999748259 | W203: 2.025856256 | X203: 2.050410206 | Y203: 2.073410108 | AA203: high | AB203: =INDEX(R195:R212,AB200,1) -> 220 | AC203: =INDEX(S193:Y193,1,AC200) -> 10
D204: 140 | E204: 1.907935135 | F204: 1.924843172 | G204: 1.941316075 | H204: 1.954991692 | I204: 1.966491643 | J204: 1.975815928 | K204: 1.982653737 | R204: 140 | S204: 1.907935135 | T204: 1.936343123 | U204: 1.965870024 | V204: 1.993842878 | W204: 2.019640066 | X204: 2.043572397 | Y204: 2.06626149
D205: 150 | E205: 1.902029755 | F205: 1.918937791 | G205: 1.934789075 | H205: 1.947843074 | I205: 1.958721406 | J205: 1.967424072 | K205: 1.973951071 | M205: density low | N205: =INDEX(E195:K212,N199,O199) -> 1.860505607 | R205: 150 | S205: 1.902029755 | T205: 1.930437742 | U205: 1.959964644 | V205: 1.987626689 | W205: 2.012802257 | X205: 2.036734588 | Y205: 2.059112871 | AA205: density low | AB205: =INDEX(S195:Y212,AB199,AC199) -> 1.860505607
D206: 160 | E206: 1.896124375 | F206: 1.912721601 | G206: 1.927951266 | H206: 1.940383646 | I206: 1.950640359 | J206: 1.959032215 | K206: 1.964937596 | M206: density high | N206: =INDEX(E195:K212,N200,O199) -> 1.85273537 | R206: 160 | S206: 1.896124375 | T206: 1.924532362 | U206: 1.953748454 | V206: 1.98078888 | W206: 2.005964448 | X206: 2.02958597 | Y206: 2.051342634 | AA206: density high | AB206: =INDEX(S195:Y212,AB200,AC199) -> 1.85273537
D207: 170 | E207: 1.889690618 | F207: 1.906194602 | G207: 1.920802648 | H207: 1.932613409 | I207: 1.942248503 | J207: 1.95001874 | K207: 1.955613311 | M207: low percent | N207: =((N198-N202)/(N203-N202))*(N206-N205) +N205 -> 1.856620489 | R207: 170 | S207: 1.889690618 | T207: 1.918316172 | U207: 1.946910645 | V207: 1.973951071 | W207: 1.99881583 | X207: 2.021815732 | Y207: 2.043572397 | AA207: low percent | AB207: =((AB198-AB202)/(AB203-AB202))*(AB206-AB205) +AB205 -> 1.856620489
D208: 180 | E208: 1.883070376 | F208: 1.899356793 | G208: 1.91334322 | H208: 1.924532362 | I208: 1.933856647 | J208: 1.941005265 | K208: 1.945978217 | R208: 180 | S208: 1.883070376 | T208: 1.911789173 | U208: 1.940072837 | V208: 1.966802453 | W208: 1.991356402 | X208: 2.014045495 | Y208: 2.03549135
D209: 190 | E209: 1.876077163 | F209: 1.892518985 | G209: 1.905572983 | H209: 1.916140506 | I209: 1.924843172 | J209: 1.931370171 | K209: 1.936032313 | M209: density low | N209: =INDEX(E195:K212,N199,O200) -> 1.877600129 | R209: 190 | S209: 1.876077163 | T209: 1.904951364 | U209: 1.932924218 | V209: 1.959343025 | W209: 1.983586165 | X209: 2.005964448 | Y209: 2.026788684 | AA209: density low | AB209: =INDEX(S195:Y212,AB199,AC200) -> 1.890343318
D210: 200 | E210: 1.869052868 | F210: 1.885059557 | G210: 1.897491936 | H210: 1.90743784 | I210: 1.915518887 | J210: 1.921735077 | K210: 1.92608641 | M210: density high | N210: =INDEX(E195:K212,N200,O200) -> 1.900600031 | R210: 200 | S210: 1.869052868 | T210: 1.897802746 | U210: 1.925464791 | V210: 1.951572788 | W210: 1.975505118 | X210: 1.997572592 | Y210: 2.018086019 | AA210: density high | AB210: =INDEX(S195:Y212,AB200,AC200) -> 1.882573081
D211: 210 | E211: 1.860505607 | F211: 1.877600129 | G211: 1.88910008 | H211: 1.898424365 | I211: 1.905883793 | J211: 1.911478364 | K211: 1.915518887 | M211: high percent | N211: =((N198-N202)/(N203-N202))*(N210-N209) +N209 -> 1.88910008 | R211: 210 | S211: 1.860505607 | T211: 1.890343318 | U211: 1.918005363 | V211: 1.943491741 | W211: 1.967113262 | X211: 1.988869927 | Y211: 2.009072543 | AA211: high percent | AB211: =((AB198-AB202)/(AB203-AB202))*(AB210-AB209) +AB209 -> 1.8864582
D212: 220 | E212: 1.85273537 | F212: 1.900600031 | G212: 1.880397414 | H212: 1.88910008 | I212: 1.895937889 | J212: 1.90122165 | K212: 1.904640555 | N212: =IF(E162="None",((N198-N202)/(N203-N202))*(N206-N205) +N205,"") ->  | R212: 220 | S212: 1.85273537 | T212: 1.882573081 | U212: 1.909924316 | V212: 1.935410694 | W212: 1.958410596 | X212: 1.979856451 | Y212: 1.999748259 | AB212: =IF(S162="None",((AB198-AB202)/(AB203-AB202))*(AB206-AB205) +AB205,"") -> 
L213: final density | M213: =IF('Hidden Controls'!L20=2,((O198-O202)/(O203-O202))*(N211-N207)+N207,0) -> 0 | Z213: final density | AA213: =IF('Hidden Controls'!L20=3,((AC198-AC202)/(AC203-AC202))*(AB211-AB207) +AB207,0) -> 0
D215: Viscosity of Propylene Glycol | R215: Viscosity of Ethylene Glycol
E216: percent Glycol | S216: percent Glycol
E217: 0 | F217: 10 | G217: 20 | H217: 30 | I217: 40 | J217: 50 | K217: 60 | S217: 0 | T217: 10 | U217: 20 | V217: 30 | W217: 40 | X217: 50 | Y217: 60
D218: Temp (F) | E218: lbsec/ft^2 | F218: lbsec/ft^2 | G218: lbsec/ft^2 | H218: lbsec/ft^2 | I218: lbsec/ft^2 | J218: lbsec/ft^2 | K218: lbsec/ft^2 | R218: Temp (F) | S218: lbsec/ft^2 | T218: lbsec/ft^2 | U218: lbsec/ft^2 | V218: lbsec/ft^2 | W218: lbsec/ft^2 | X218: lbsec/ft^2 | Y218: lbsec/ft^2
D219: 50 | E219: 2.73e-05 | F219: 3.94734627e-05 | G219: 5.82703497e-05 | H219: 9.44021436e-05 | I219: 0.0001507928046 | J219: 0.0002224298295 | K219: 0.0003560965815 | M219: target | N219: =Q171 -> 215 | O219: ='Rate Convector'!E26 -> 0 | R219: 50 | S219: 2.73e-05 | T219: 3.25812708e-05 | U219: 4.55302374e-05 | V219: 6.16120185e-05 | W219: 8.43771372e-05 | X219: 0.000114869865 | Y219: 0.0001639506255 | AA219: target | AB219: =Q171 -> 215 | AC219: ='Rate Convector'!E26 -> 0
D220: 60 | E220: 2.344e-05 | F220: 3.3416688e-05 | G220: 4.84541976e-05 | H220: 7.53964023e-05 | I220: 0.0001159141365 | J220: 0.0001697985459 | K220: 0.0002629475637 | M220: index low | N220: =IF(MATCH(N219,D219:D236,1)=18, 17,MATCH(N219,D219:D236,1)) -> 17 | O220: =IF(MATCH(O219,E217:K217,1)=7, 6,MATCH(O219,E217:K217,1)) -> 1 | R220: 60 | S220: 2.344e-05 | T220: 2.81953305e-05 | U220: 3.88468998e-05 | V220: 5.20047207e-05 | W220: 7.05927534e-05 | X220: 9.50287065e-05 | Y220: 0.0001322047719 | AA220: index low | AB220: =IF(MATCH(AB219,R219:R236,1)=18, 17,MATCH(AB219,R219:R236,1)) -> 17 | AC220: =IF(MATCH(AC219,S217:Y217,1)=7, 6,MATCH(AC219,S217:Y217,1)) -> 1
D221: 70 | E221: 2.034e-05 | F221: 2.88218934e-05 | G221: 4.07265885e-05 | H221: 6.14031642e-05 | I221: 9.10604748e-05 | J221: 0.0001324136262 | K221: 0.0001986204393 | M221: index high | N221: =N220+1 -> 18 | O221: =O220+1 -> 2 | R221: 70 | S221: 2.034e-05 | T221: 2.46448074e-05 | U221: 3.36255423e-05 | V221: 4.44859659e-05 | W221: 5.99411841e-05 | X221: 7.95734883e-05 | Y221: 0.0001079776731 | AA221: index high | AB221: =AB220+1 -> 18 | AC221: =AC220+1 -> 2
D222: 80 | E222: 1.791e-05 | F222: 2.5062516e-05 | G222: 3.46698138e-05 | H222: 5.07515949e-05 | I222: 7.3099005e-05 | J222: 0.0001052625672 | K222: 0.0001532990562 | N222: temp | O222: percent | R222: 80 | S222: 1.791e-05 | T222: 2.17208472e-05 | U222: 2.94484563e-05 | V222: 3.84291912e-05 | W222: 5.13781578e-05 | X222: 6.74599389e-05 | Y222: 8.93896404e-05 | AB222: temp | AC222: percent
D223: 90 | E223: 1.5e-05 | F223: 2.19297015e-05 | G223: 2.98661649e-05 | H223: 4.26062772e-05 | I223: 5.97323298e-05 | J223: 8.52125544e-05 | K223: 0.0001205089311 | M223: low | N223: =INDEX(D219:D236,N220,1) -> 210 | O223: =INDEX(E217:K217,1,O220) -> 0 | R223: 90 | S223: 1.5e-05 | T223: 1.94234499e-05 | U223: 2.58979332e-05 | V223: 3.3416688e-05 | W223: 4.44859659e-05 | X223: 5.76437868e-05 | Y223: 7.47698394e-05 | AA223: low | AB223: =INDEX(R219:R236,AB220,1) -> 210 | AC223: =INDEX(S217:Y217,1,AC220) -> 0
D224: 100 | E224: 1.423e-05 | F224: 1.94234499e-05 | G224: 2.61067875e-05 | H224: 3.61317939e-05 | I224: 4.94984691e-05 | J224: 6.99661905e-05 | K224: 9.64906866e-05 | M224: high | N224: =INDEX(D219:D236,N221,1) -> 220 | O224: =INDEX(E217:K217,1,O221) -> 10 | R224: 100 | S224: 1.423e-05 | T224: 1.73349069e-05 | U224: 2.31828273e-05 | V224: 2.38093902e-05 | W224: 3.90557541e-05 | X224: 4.99161777e-05 | Y224: 6.32828529e-05 | AA224: high | AB224: =INDEX(R219:R236,AB221,1) -> 220 | AC224: =INDEX(S217:Y217,1,AC221) -> 10
D225: 110 | E225: 1.294e-05 | F225: 1.73349069e-05 | G225: 2.2973973e-05 | H225: 3.11192907e-05 | I225: 4.177086e-05 | J225: 5.82703497e-05 | K225: 7.85292168e-05 | R225: 110 | S225: 1.294e-05 | T225: 1.56640725e-05 | U225: 2.06765757e-05 | V225: 2.61067875e-05 | W225: 3.42521052e-05 | X225: 4.34416944e-05 | Y225: 5.38844094e-05
D226: 120 | E226: 1.164e-05 | F226: 1.56640725e-05 | G226: 2.02588671e-05 | H226: 2.7151059e-05 | I226: 3.57140853e-05 | J226: 4.92896148e-05 | K226: 6.49536873e-05 | M226: viscosity low | N226: =INDEX(E219:K236,N220,O220) -> 5.96e-06 | R226: 120 | S226: 1.164e-05 | T226: 1.42020924e-05 | U226: 1.8796887e-05 | V226: 2.31828273e-05 | W226: 3.04927278e-05 | X226: 3.80114826e-05 | Y226: 4.65745089e-05 | AA226: viscosity low | AB226: =INDEX(S219:Y236,AB220,AC220) -> 5.96e-06
D227: 130 | E227: 1.069e-05 | F227: 1.42020924e-05 | G227: 1.81703241e-05 | H227: 2.38093902e-05 | I227: 3.11192907e-05 | J227: 4.21885686e-05 | K227: 5.45109723e-05 | M227: viscosity high | N227: =INDEX(E219:K236,N221,O220) -> 5.62e-06 | R227: 130 | S227: 1.069e-05 | T227: 1.29489666e-05 | U227: 1.69171983e-05 | V227: 2.088543e-05 | W227: 2.7151059e-05 | X227: 3.36255423e-05 | Y227: 4.03088799e-05 | AA227: viscosity high | AB227: =INDEX(S219:Y236,AB221,AC220) -> 5.62e-06
D228: 140 | E228: 9.74e-06 | F228: 1.29489666e-05 | G228: 1.62906354e-05 | H228: 2.10942843e-05 | I228: 2.7151059e-05 | J228: 3.65495025e-05 | K228: 4.63656546e-05 | M228: low percent | N228: =((N219-N223)/(N224-N223))*(N227-N226) +N226 -> 5.79e-06 | R228: 140 | S228: 9.74e-06 | T228: 1.19046951e-05 | U228: 1.54552182e-05 | V228: 1.8796887e-05 | W228: 2.44359531e-05 | X228: 2.98661649e-05 | Y228: 3.52963767e-05 | AA228: low percent | AB228: =((AB219-AB223)/(AB224-AB223))*(AB227-AB226) +AB226 -> 5.79e-06
D229: 150 | E229: 9.03e-06 | F229: 1.19046951e-05 | G229: 1.48286553e-05 | H229: 1.8796887e-05 | I229: 2.42270988e-05 | J229: 3.19547079e-05 | K229: 3.98911713e-05 | R229: 150 | S229: 9.03e-06 | T229: 1.10692779e-05 | U229: 1.42020924e-05 | V229: 1.71260526e-05 | W229: 2.19297015e-05 | X229: 2.67333504e-05 | Y229: 3.11192907e-05
D230: 160 | E230: 8.32e-06 | F230: 1.08604236e-05 | G230: 1.33666752e-05 | H230: 1.71260526e-05 | I230: 2.15119929e-05 | J230: 2.81953305e-05 | K230: 3.46698138e-05 | M230: viscosity low | N230: =INDEX(E219:K236,N220,O221) -> 7.5187548e-06 | R230: 160 | S230: 8.32e-06 | T230: 1.02338607e-05 | U230: 1.31578209e-05 | V230: 1.56640725e-05 | W230: 1.98411585e-05 | X230: 2.40182445e-05 | Y230: 2.75687676e-05 | AA230: viscosity low | AB230: =INDEX(S219:Y236,AB220,AC221) -> 7.3099005e-06
D231: 170 | E231: 7.77e-06 | F231: 1.00250064e-05 | G231: 1.23224037e-05 | H231: 1.54552182e-05 | I231: 1.94234499e-05 | J231: 2.5062516e-05 | K231: 3.02838735e-05 | M231: viscosity high | N231: =INDEX(E219:K236,N221,O221) -> 7.1010462e-06 | R231: 170 | S231: 7.77e-06 | T231: 9.6072978e-06 | U231: 1.21135494e-05 | V231: 1.42020924e-05 | W231: 1.81703241e-05 | X231: 2.17208472e-05 | Y231: 2.46448074e-05 | AA231: viscosity high | AB231: =INDEX(S219:Y236,AB221,AC221) -> 6.8921919e-06
D232: 180 | E232: 7.21e-06 | F232: 9.1895892e-06 | G232: 1.12781322e-05 | H232: 1.42020924e-05 | I232: 1.77526155e-05 | J232: 2.25562644e-05 | K232: 2.69422047e-05 | M232: high percent | N232: =((N219-N223)/(N224-N223))*(N231-N230) +N230 -> 7.3099005e-06 | R232: 180 | S232: 7.21e-06 | T232: 8.9807349e-06 | U232: 1.12781322e-05 | V232: 1.31578209e-05 | W232: 1.64994897e-05 | X232: 1.96323042e-05 | Y232: 2.21385558e-05 | AA232: high percent | AB232: =((AB219-AB223)/(AB224-AB223))*(AB231-AB230) +AB230 -> 7.1010462e-06
D233: 190 | E233: 6.78e-06 | F233: 8.5630263e-06 | G233: 1.0442715e-05 | H233: 1.29489666e-05 | I233: 1.62906354e-05 | J233: 2.02588671e-05 | K233: 2.40182445e-05 | N233: =IF(C156="None",((N219-N223)/(N224-N223))*(N227-N226) +N226,"") ->  | R233: 190 | S233: 6.78e-06 | T233: 8.354172e-06 | U233: 1.0442715e-05 | V233: 1.21135494e-05 | W233: 1.52463639e-05 | X233: 1.77526155e-05 | Y233: 1.98411585e-05 | AB233: =IF(Q156="None",((AB219-AB223)/(AB224-AB223))*(AB227-AB226) +AB226,"") -> 
D234: 200 | E234: 6.34e-06 | F234: 7.9364634e-06 | G234: 9.6072978e-06 | H234: 1.21135494e-05 | I234: 1.50375096e-05 | J234: 1.83791784e-05 | K234: 2.17208472e-05 | M234: Prop. viscosity | N234: =IF('Hidden Controls'!L20=2,((O219-O223)/(O224-O223))*(N232-N228) +N228,0) -> 0 | R234: 200 | S234: 6.34e-06 | T234: 7.7276091e-06 | U234: 9.8161521e-06 | V234: 1.12781322e-05 | W234: 1.39932381e-05 | X234: 1.62906354e-05 | Y234: 1.79614698e-05 | AA234: Eth. viscosity | AB234: =IF('Hidden Controls'!L20=3,((AC219-AC223)/(AC224-AC223))*(AB232-AB228) +AB228,0) -> 0
... 36 more rows

Sheet Hidden Controls (hidden)
B3: Convector type | E3: Convector Depth | H3: Convector Length | K3: convector height | O3: convector height | Q3: FS-A, FSG-A, FWG-A, RF-A, RFG-A, SF-A, SFG-A
A4: 1 | B4: FS-A | C4: 1 | E4: 4 | F4: 1 | H4: 20 | I4: 1 | K4: =IF(OR(C4=4, C4=5),18,IF(OR(C4=10, C4=11),16,IF(OR(C4=12, C4=13),14,18))) -> 18 | L4: 1 | O4: 18 | Q4: 1,2,3,6,7,8,9
A5: 2 | B5: FSG-A | E5: 6 | H5: 24 | K5: =IF(OR(C4=4, C4=5),20,IF(OR(C4=10, C4=11),18,IF(OR(C4=12, C4=13),18,20))) -> 20 | O5: 20
A6: 3 | B6: FWG-A | E6: 8 | H6: 28 | K6: =IF(OR(C4=4, C4=5),24,IF(OR(C4=10, C4=11),22,IF(OR(C4=12, C4=13),20,24))) -> 24 | O6: 24
A7: 4 | B7: PW-A | H7: 32 | K7: =IF(OR(C4=4, C4=5),26,IF(OR(C4=10, C4=11),24,IF(OR(C4=12, C4=13),26,26))) -> 26 | O7: 26
A8: 5 | B8: PWG-A | H8: 36 | K8: =IF(OR(C4=4, C4=5),28,IF(OR(C4=10, C4=11),30,IF(OR(C4=12, C4=13),32,32))) -> 32 | O8: 32
A9: 6 | B9: RF-A | E9: min flow limit | H9: 40
A10: 7 | B10: RFG-A | E10: =IF(F4=1,0.15,IF(F4=2,0.225,0.3)) -> 0.15 | H10: 44
A11: 8 | B11: SF-A | H11: 48 | O11: convector height | Q11: PW-A, PWG-A
A12: 9 | B12: SFG-A | H12: 52 | O12: 18 | Q12: 4,5
A13: 10 | B13: SR-A | H13: 56 | O13: 20
A14: 11 | B14: SRG-A | H14: 60 | O14: 24
A15: 12 | B15: SW-A | H15: 64 | O15: 26
A16: 13 | B16: W-A | O16: 28
B19: lh end pocket | D19: FALSE | E19: true= pocket, false = no pocket | J19: Fluid Selection | O19: convector height | Q19: SR-A, SRG-A
B20: rh end pocket | D20: FALSE | J20: Water | L20: 1 | O20: 16 | Q20: 10,11
J21: Proplyene Glycol Mix | O21: 18
B22: lh access door | E22: rh access door | J22: Ethylene Glycol Mix | O22: 22
B23: #3 | C23: FALSE | E23: #4 | F23: FALSE | O23: 24
B24: #1 | C24: FALSE | E24: #2 | F24: FALSE | O24: 30
B25: #5 | C25: FALSE | E25: #6 | F25: FALSE
O27: convector height | Q27: SW-A, W-A
F28: height | O28: 14 | Q28: 12,13
B29: Grille Derate | E29: 16, 18 | F29: 20 | G29: 22, 24 | H29: 26 | I29: 28, 30, 32 | O29: 18
E30: 1 | F30: 2 | G30: 3 | H30: 4 | I30: 5 | O30: 20
C31: 4 | D31: 1 | E31: 0.97 | F31: 0.97 | G31: 0.98 | H31: 0.98 | I31: 0.99 | O31: 26
B32: depth | C32: 6 | D32: 2 | E32: 0.94 | F32: 0.94 | G32: 0.95 | H32: 0.95 | I32: 0.98 | O32: 32
C33: 8 | D33: 3 | E33: 0.91 | F33: 0.91 | G33: 0.93 | H33: 0.93 | I33: 0.97
C35: temp grille derate factor = | D35: =HLOOKUP(L4,E30:I33,1+F4,FALSE) -> 0.97 | G35: final grille factor = | H35: =IF(OR(C4=2, C4=3, C4=5, C4=7, C4=9, C4=11),D35,1) -> 1
B37: Access Door Derate
B38: FS-A, FSG-A, SF-A, SFG-A, SW-A, W-A | L38: FWG-A, PW-A, PWG-A, RF-A, RFG-A, SR-A, SRG-A
D39: non recessed = | E39: =IF(OR(C4=1, C4=2, C4=8, C4=9, C4=12, C4=13), TRUE,FALSE) -> TRUE | N39: recessed = | O39: =IF(E39=TRUE,FALSE,TRUE) -> FALSE
E40: door sum = lh choice plus rh choice | O40: door sum = lh choice plus rh choice
D41: 3 or 4 | E41: 3 & 4 | H41: 5 or 6 | I41: 5 & 6 | N41: 3 or 4 | O41: 3 & 4 | R41: 5 or 6 | S41: 5 & 6
D42: 3 | E42: 6 | H42: 4 | I42: 8 | N42: 3 | O42: 6 | R42: 4 | S42: 8
B43: 20 | C43: 1 | D43: 0.94 | E43: 0.88 | G43: 1 | H43: 0.82 | I43: 0.65 | L43: 20 | M43: 1 | N43: 0.975 | O43: 0.95 | Q43: 1 | R43: 0.925 | S43: 0.85
B44: 24 | C44: 2 | D44: 0.95 | E44: 0.91 | G44: 2 | H44: 0.86 | I44: 0.72 | L44: 24 | M44: 2 | N44: 0.98 | O44: 0.96 | Q44: 2 | R44: 0.94 | S44: 0.88
B45: 28 | C45: 3 | D45: 0.96 | E45: 0.92 | G45: 3 | H45: 0.89 | I45: 0.77 | L45: 28 | M45: 3 | N45: 0.982 | O45: 0.968 | Q45: 3 | R45: 0.948 | S45: 0.902
B46: 32 | C46: 4 | D46: 0.97 | E46: 0.94 | G46: 4 | H46: 0.89 | I46: 0.8 | L46: 32 | M46: 4 | N46: 0.985 | O46: 0.972 | Q46: 4 | R46: 0.955 | S46: 0.918
B47: 36 | C47: 5 | D47: 0.97 | E47: 0.94 | G47: 5 | H47: 0.92 | I47: 0.83 | L47: 36 | M47: 5 | N47: 0.988 | O47: 0.975 | Q47: 5 | R47: 0.962 | S47: 0.925
B48: 40 | C48: 6 | D48: 0.97 | E48: 0.95 | G48: 6 | H48: 0.92 | I48: 0.85 | L48: 40 | M48: 6 | N48: 0.99 | O48: 0.978 | Q48: 6 | R48: 0.97 | S48: 0.932
B49: 44 | C49: 7 | D49: 0.98 | E49: 0.95 | G49: 7 | H49: 0.93 | I49: 0.86 | L49: 44 | M49: 7 | N49: 0.99 | O49: 0.98 | Q49: 7 | R49: 0.97 | S49: 0.94
B50: 48 | C50: 8 | D50: 0.98 | E50: 0.96 | G50: 8 | H50: 0.94 | I50: 0.88 | L50: 48 | M50: 8 | N50: 0.99 | O50: 0.982 | Q50: 8 | R50: 0.97 | S50: 0.948
B51: 52 | C51: 9 | D51: 0.98 | E51: 0.96 | G51: 9 | H51: 0.95 | I51: 0.89 | L51: 52 | M51: 9 | N51: 0.992 | O51: 0.985 | Q51: 9 | R51: 0.978 | S51: 0.955
B52: 56 | C52: 10 | D52: 0.98 | E52: 0.96 | G52: 10 | H52: 0.95 | I52: 0.89 | L52: 56 | M52: 10 | N52: 0.992 | O52: 0.985 | Q52: 10 | R52: 0.978 | S52: 0.955
B53: 60 | C53: 11 | D53: 0.98 | E53: 0.97 | G53: 11 | H53: 0.95 | I53: 0.9 | L53: 60 | M53: 11 | N53: 0.992 | O53: 0.985 | Q53: 11 | R53: 0.978 | S53: 0.955
B54: 64 | C54: 12 | D54: 0.98 | E54: 0.97 | G54: 12 | H54: 0.95 | I54: 0.91 | L54: 64 | M54: 12 | N54: 0.992 | O54: 0.988 | Q54: 12 | R54: 0.978 | S54: 0.962
C56: 3/4 door sum | D56: =IF(D19=TRUE,0,IF(C23=TRUE,3,0))+IF(D20=TRUE,0,IF(F23=TRUE,3,0)) -> 0 | G56: 5/6 door sum | H56: =IF(D19=TRUE,0,IF(C25=TRUE,4,0))+IF(D20=TRUE,0,IF(F25=TRUE,4,0)) -> 0
C57: temp 3/4 door derate 1 = | D57: =IF(OR(D56=3, D56=6),HLOOKUP(D56,D42:E54,I4+1,FALSE),1) -> 1 | M57: temp 3/4 door derate 2 = | N57: =IF(OR(D56=3, D56=6),HLOOKUP(D56,N42:O54,I4+1,FALSE),1) -> 1
C58: temp 5/6 door derate 1 = | D58: =IF(OR(H56=4, H56=8),HLOOKUP(H56,H42:I54,I4+1,FALSE),1) -> 1 | M58: temp 5/6 door derate 2 = | N58: =IF(OR(H56=4, H56=8),HLOOKUP(H56,R42:S54,I4+1,FALSE),1) -> 1
C59: temp combined derate 1 = | D59: =D57*D58 -> 1 | M59: temp combined derate 2 = | N59: =N57*N58 -> 1
G60: Final access door derate factor = | H60: =IF(E39=TRUE,D59,IF(O39=TRUE,N59,1)) -> 1
A65: type | B65: Access door error conditions
A66: 1 | B66: =IF(AND(C4=1,OR(C25=TRUE,F25=TRUE,OR(AND(L4<3,C24=TRUE),AND(L4<3,F24=TRUE)))),1,0) -> 0 | C66: if type = FS-A and ((door = 1, 2 and height =20 or less) or door = 5 or 6) then error
A67: 2 | B67: =IF(AND(C4=2,OR(AND(L4<3,C24=TRUE),AND(L4<3,F24=TRUE))),1,0) -> 0 | C67: if type = FSG-A and (door = 1, 2 and height =20 or less) then error
A68: 3 | B68: =IF(AND(C4=3,OR(AND(L4<3,C24=TRUE),AND(L4<3,F24=TRUE))),1,0) -> 0 | C68: if type = FWG-A and (door = 1, 2 and height =20 or less) then error
A69: 4 | B69: =IF(AND(C4=4,OR(AND(L4<3,C24=TRUE),AND(L4<3,F24=TRUE))),1,0) -> 0 | C69: if type = PW-A and (door = 1, 2 and height =20 or less) then error
A70: 5 | B70: =IF(AND(C4=5,OR(AND(L4<3,C24=TRUE),AND(L4<3,F24=TRUE))),1,0) -> 0 | C70: if type = PWG-A and (door = 1, 2 and height =20 or less) then error
A71: 6 | B71: =IF(AND(C4=6,OR(C25=TRUE,F25=TRUE,OR(AND(L4<3,C24=TRUE),AND(L4<3,F24=TRUE)))),1,0) -> 0 | C71: if type = RF-A and ((door = 1, 2 and height =20 or less) or door = 5 or 6) then error
A72: 7 | B72: =IF(AND(C4=7,OR(AND(L4<3,C24=TRUE),AND(L4<3,F24=TRUE))),1,0) -> 0 | C72: if type = RFG-A and (door = 1, 2 and height =20 or less) then error
A73: 8 | B73: =IF(AND(C4=8,OR(C25=TRUE,F25=TRUE,OR(AND(L4<3,C23=TRUE),AND(L4<3,F23=TRUE),AND(L4=3,OR(F4=2,F4=3))))),1,0) -> 0 | C73: if type =SF-A and (door =3,4 and (height = 18, 20 (or depth = 6,8 and height = 24)) or door =5,6) then error
A74: 9 | B74: =IF(AND(C4=9,OR(AND(L4<3,C23=TRUE),AND(L4<3,F23=TRUE),AND(L4=3,OR(F4=2,F4=3)))),1,0) -> 0 | C74: if type =SFG-A and door = 3,4 and (height = 18, 20 (or depth = 6,8 and height = 24)) then error
A75: 10 | B75: =IF(AND(C4=10,OR(C25=TRUE,F25=TRUE,OR(AND(L4<3,C24=TRUE),AND(L4<3,F24=TRUE)))),1,0) -> 0 | C75: if type = SR-A and ((door = 1, 2 and height =18 or less) or door = 5 or 6) then error
A76: 11 | B76: =IF(AND(C4=11,OR(AND(L4<3,C24=TRUE),AND(L4<3,F24=TRUE))),1,0) -> 0 | C76: if type = SRG-A and (door = 1, 2 and height =18 or less) then error
A77: 12 | B77: =IF(AND(C4=12,OR(AND(L4<4,C23=TRUE),AND(L4<4,F23=TRUE),AND(L4=1,C25=TRUE),AND(L4=1,F25=TRUE))),1,0) -> 0 | C77: if type =SW-A and (door = 3,4 and height = 14, 18, 20) or (door = 5,6 and height = 14) then error
A78: 13 | B78: =IF(AND(C4=13,OR(AND(L4<4,C24=TRUE),AND(L4<4,F24=TRUE),AND(L4=1,C25=TRUE),AND(L4=1,F25=TRUE))),1,0) -> 0 | C78: if type = W-A and (door = 1,2 and height = 14, 18, 20) or (door = 5, 6 and height = 14) then error
A79: sum | B79: =SUM(B66:B78) -> 0 | C79: =IF(B79<>0,"Access Door location chosen is unavailable","") -> 
B80: if sum <> 0 then display invalid door location message
B83: End Pocket error conditions
B84: length | E84: =INDEX(H4:H15,I4) -> 20
B85: type | E85: =INDEX(B4:B16,C4) -> FS-A
B86: # end pockets selected | E86: =IF(AND(D19=TRUE,D20=TRUE),2,IF(OR(D19=TRUE,D20=TRUE),1,0)) -> 0
B87: check if SR-A or RF-A | E87: =IF(OR(E85="SR-A",E85="RF-A"),"TRUE","FALSE") -> FALSE
C89: Conditions
B90: =AND(E84=64,E87="FALSE",E86=2) -> FALSE | C90: if length = 64 and type <> SR-A or RF-A and 2 end pockets selected then "One End Pocket Maximum" else no error message
B91: =AND(E84=64,E87="TRUE",E86>0) -> FALSE | C91: if length = 64 and type = SR-A or RF-A then "End Pockets Not Available" else no error message
B92: =AND(E84=60,E87="TRUE",E86=2) -> FALSE | C92: if length = 60 and type = SR-A or RF-A and 2 end pockets then "One End Pocket Maximum" else no error message
B93: =IF(AND(E84<>64,E87<>"TRUE"),"TRUE","FALSE") -> TRUE | C93: if length <> 64 and type <> SR-A or RF-A then no error message
B95: error message = | D95: =IF(OR(B90=TRUE,B92=TRUE),"One End Pocket Maximum", IF(B91=TRUE,"End Pockets Not Available","")) -> 

Sheet Rate Convector
C1: Mestek Convector Rating Spreadsheet
C4: Convector Selection Inputs | H4: End Pocket Selection
C5: Type
C6: Depth | H6: ='Hidden Controls'!D95 -> 
C7: Length
C8: Height | H8: Access Door Selection
A10: Cell | C10: Standard Condition 215°F @ 65°F EAT
A11: Legend | D11: Heat Capacity | E11: =MROUND(E12*240,5) -> 2230 | F11: BTUH
A12: Input | D12: Heat Capacity | E12: ='Hidden Data'!L56*L16*L17 -> 9.3 | F12: EDR | H12: =IF('Hidden Controls'!B79=1,"Access Door location chosen is unavailable","") -> 
A13: Output
A14: Reference | C14: Common Condition | H14: Applied Deratings
D15: Altitude | E15: 0 | F15: Feet | K15: Altitude derate factor | L15: ='Hidden Data'!F279 -> 1
K16: Inlet Grille derate factor | L16: ='Hidden Controls'!H35 -> 1
C17: Steam Ratings | K17: Access Door derate factor | L17: ='Hidden Controls'!H60 -> 1
D18: Steam Pressure | E18: 0.899 | F18: PSIG | K18: Steam Pressure correction factor | L18: ='Hidden Data'!L68 -> 1
D19: Steam Unit Capacity | E19: =E11*L18*L15 -> 2230 | F19: BTUH | K19: Water/Air Temp correction factor | L19: ='Hidden Data'!C90 -> 1
K20: Fluid Temp Drop correction factor | L20: ='Hidden Data'!F267 -> 1
C21: Hot Water Ratings | K21: Glycol correction factor | L21: ='Hidden Data'!Q131 -> 1
D22: Entering Air Temp | E22: 65
C23: Fluid | H23: =IF('Hidden Controls'!L20=3,"Ethylene Glycol is NOT recognized or approved for use by USDA and other health agencies.","") -> 
D24: Average Fluid Temp | E24: 215 | F24: °F
D25: Fluid Temp Drop | E25: 20 | F25: °F
A26: MDG | D26: Glycol | E26: 0 | F26: % | H26: =IF(H27="","Flow is above minimum flow limit","") -> Flow is above minimum flow limit
A27: 11/2019 | C27: =IF(AND(E26<>0,'Hidden Controls'!L20=1),"Glycol & Fluid Mismatch - Glycol Ignored","") ->  | H27: =IF(E29<J28,"Warning - Laminar Flow","") -> 
C28: Water Unit Capacity | E28: =E11*L19*L20*L21*L15 -> 2230 | F28: BTUH | I28: Min. Flow Limit = | J28: ='Hidden Data'!G252 -> 0.1437004568 | K28: GPM
D29: Fluid Flow Rate | E29: =E28/(500*E25) -> 0.223 | F29: GPM | H29: =IF('Hidden Data'!C164=1,"* flow rate exceeds highest flow rate on pressure","") -> 
D30: Pressure Loss | E30: ='Hidden Data'!C163 -> 0.039248 | F30: FT H2O | H30: =IF('Hidden Data'!C164=1,"loss chart - unable to calculate","") -> 
